fUST/lending_fUST_20251219
["ID","MTS","AMOUNT","RATE_DAILY","PERIOD"]
[399036729,1766081439104,-285.0,0.00033026,120]
[399036730,1766081439113,-235.89222042,0.00033148,110]
[399036731,1766081439124,-300.91501377,0.00033151,2]
[399036732,1766081439134,-447.04144334,0.00033151,2]
[399036733,1766081439144,-545.03228448,0.00033445,30]
[399036734,1766081439154,-500.0,0.00033445,2]
[399036735,1766081439164,-500.0,0.00033445,30]
[399036736,1766081439174,-500.0,0.00033445,30]
[399036737,1766081439184,-500.0,0.00033445,30]
[399036738,1766081439193,-160.0,0.00033482,2]
[399036739,1766081439203,-453.85,0.00033538,10]
[399036740,1766081439215,-378.21,0.00033538,10]
[399036741,1766081439225,-3362.84,0.00033546,30]
[399036742,1766081439234,-500.0,0.00033546,10]
[399036743,1766081439244,-1339.98,0.00033546,30]
[399036744,1766081439254,-3264.12,0.00033547,30]
[399036745,1766081439264,-2058.48,0.00033548,30]
[399036746,1766081439273,-2229.66,0.00033548,30]
[399036747,1766081439285,-500.0,0.00033548,30]
[399036748,1766081439294,-160.0,0.00033548,30]
[399036749,1766081439304,-1041.66666667,0.00033548,30]
[399036750,1766081439313,-276.29,0.000336,7]
[399036751,1766081439324,-1548.7861107,0.0003385,2]
[399036752,1766081439333,-1965.54425711,0.00034147,2]
[399036753,1766081439342,-720.0,0.0003421,2]
[399036754,1766081439353,-239.2394114,0.00034787,5]
[399036755,1766081439363,-1548.7861107,0.00034822,2]
[399036756,1766081439372,-489.20302314,0.00034996,7]
[399036757,1766081439381,-159.73446157,0.00034996,7]
[399036758,1766081439391,-500.0,0.00034996,7]
[399036759,1766081439400,-500.0,0.00034996,7]
[399036760,1766081439409,-500.0,0.00034996,7]
[399036761,1766081439418,-500.0,0.00034996,7]
[399036762,1766081439428,-304.70589636,0.00034996,7]
[399036763,1766081439437,-500.0,0.00034996,7]
[399036764,1766081439446,-500.0,0.00034996,7]
[399036765,1766081439455,-500.0,0.00034996,7]
[399036766,1766081439464,-500.0,0.00034996,7]
[399036767,1766081439473,-10000.0,0.00034997,2]
[399036768,1766081439482,-3362.84,0.00034998,30]
[399036769,1766081439491,-500.0,0.00034998,10]
[399036770,1766081439500,-151.0,0.00034998,31]
[399036771,1766081439509,-151.0,0.00034998,31]
[399036772,1766081439518,-3264.12,0.00034998,30]
[399036773,1766081439527,-1339.98,0.00034998,30]
[399036774,1766081439536,-2058.48,0.00034999,30]
[399036775,1766081439546,-2229.66,0.00034999,30]
[399036776,1766081439555,-500.0,0.00034999,30]
[399036777,1766081439565,-300.91501377,0.00035234,2]
[399036778,1766081439574,-447.04144334,0.00035234,2]
[399036779,1766081439583,-1965.54425711,0.00035398,2]
[399036780,1766081439592,-169.15,0.00035642,3]
[399036781,1766081439601,-507.49,0.00035642,3]
[399036782,1766081439610,-2706.45,0.00035652,3]
[399036784,1766081439619,-676.61,0.00035652,3]
[399036785,1766081439629,-338.31,0.00035652,3]
[399036786,1766081439639,-150.0,0.00035661,2]
[399036788,1766081439648,-300.0,0.00035661,2]
[399036789,1766081439657,-450.0,0.00035661,2]
[399036791,1766081439667,-600.0,0.00035661,2]
[399036792,1766081439676,-750.0,0.00035661,2]
[399036793,1766081439685,-828.19057942,0.00035661,2]
[399036794,1766081439695,-5638.91182089,0.00035662,2]
[399036795,1766081439705,-574.12855637,0.00035662,2]
[399036796,1766081439714,-224.02054,0.00035662,31]
[399036797,1766081439723,-5412.9,0.00035723,3]
[399036798,1766081439732,-1353.23,0.00035723,3]
[399036799,1766081439741,-10825.81,0.00035733,3]
[399036800,1766081439751,-1041.66666667,0.00035733,3]
[399036802,1766081439760,-2157.0,0.00035744,2]
[399036803,1766081439769,-1369.256,0.00035744,2]
[399036804,1766081439777,-632.0,0.00035744,2]
[399036805,1766081439786,-415.0,0.00035744,2]
[399036806,1766081439795,-1548.7861107,0.00035795,2]
[399036807,1766081439804,-5675.83249943,0.00035799,7]
[399036808,1766081439816,-212.16750057,0.00035799,7]
[399036809,1766081439825,-1041.66666667,0.00035799,7]
[399036810,1766081439834,-3264.12,0.00035995,30]
[399036811,1766081439843,-3362.84,0.00035998,30]
[399036812,1766081439853,-500.0,0.00035998,10]
[399036813,1766081439862,-151.0,0.00035998,31]
[399036814,1766081439871,-238.388779,0.00035998,31]
[399036815,1766081439880,-3264.12,0.00035998,30]
[399036816,1766081439890,-1339.98,0.00035998,30]
[399036817,1766081439899,-2058.48,0.00035999,30]
[399036818,1766081439907,-2229.66,0.00035999,30]
[399036819,1766081439916,-500.0,0.00035999,30]
[399036820,1766081439925,-225.67,0.00036,30]
[399036821,1766081439934,-1000.0,0.00036159,30]
[399036822,1766081439943,-256.94278621,0.0003621,2]
[399036823,1766081439952,-5888.0,0.00036307,7]
[399036824,1766081439961,-500.0,0.00036374,2]
[399036826,1766081439970,-500.0,0.00036374,30]
[399036827,1766081439979,-500.0,0.00036374,30]
[399036828,1766081439988,-500.0,0.00036374,30]
[399036829,1766081439997,-1965.54425711,0.00036648,2]
[399036830,1766081440006,-233.99630343,0.0003669,2]
[399036831,1766081440015,-163.89642743,0.0003669,2]
[399036832,1766081440024,-276.29,0.000367,7]
[399036833,1766081440033,-1548.7861107,0.00036768,2]
[399036834,1766081440042,-5888.0,0.0003678,2]
[399036835,1766081440051,-151.0,0.00036811,31]
[399036836,1766081440060,-3264.12,0.00036812,30]
[399036837,1766081440069,-5888.0,0.00036813,2]
[399036838,1766081440078,-3362.84,0.00036841,30]
[399036839,1766081440087,-500.0,0.00036841,10]
[399036840,1766081440096,-1339.98,0.00036841,30]
[399036841,1766081440105,-5888.0,0.00036841,2]
[399036842,1766081440114,-3362.84,0.00036973,30]
[399036843,1766081440123,-500.0,0.00036973,10]
[399036844,1766081440133,-3264.12,0.00036973,30]
[399036845,1766081440142,-1339.98,0.00036973,30]
[399036846,1766081440151,-2058.48,0.00036974,30]
[399036847,1766081440160,-2229.66,0.00036974,30]
[399036848,1766081440170,-500.0,0.00036974,30]
[399036849,1766081440179,-2058.48,0.0003701,30]
[399036850,1766081440188,-2229.66,0.0003701,30]
[399036851,1766081440198,-500.0,0.0003701,30]
[399036852,1766081440208,-151.0,0.0003701,31]
[399036853,1766081440217,-338.3,0.00037012,3]
[399036854,1766081440226,-5412.9,0.00037022,3]
[399036855,1766081440237,-1353.22,0.00037022,3]
[399036856,1766081440246,-676.62,0.00037022,3]
[399036857,1766081440255,-10825.8,0.00037093,3]
[399036858,1766081440264,-2706.46,0.00037093,3]
[399036859,1766081440273,-21651.62,0.00037103,3]
[399036860,1766081440283,-5888.0,0.00037139,2]
[399036861,1766081440293,-1041.66666667,0.000372,3]
[399036862,1766081440302,-3264.12,0.00037303,30]
[399036863,1766081440311,-500.0,0.00037303,2]
[399036864,1766081440320,-500.0,0.00037303,30]
[399036865,1766081440329,-500.0,0.00037303,30]
[399036866,1766081440338,-500.0,0.00037303,30]
[399036867,1766081440347,-2058.48,0.00037304,30]
[399036868,1766081440356,-2229.66,0.00037304,30]
[399036869,1766081440365,-500.0,0.00037304,30]
[399036870,1766081440374,-1041.66666667,0.00037304,30]
[399036871,1766081440383,-301.21592878,0.00037316,2]
[399036872,1766081440392,-447.48848479,0.00037316,2]
[399036873,1766081440401,-3362.84,0.00037326,30]
[399036874,1766081440410,-500.0,0.00037326,10]
[399036875,1766081440418,-1339.98,0.00037326,30]
[399036876,1766081440428,-5710.0,0.00037327,2]
[399036877,1766081440437,-1041.66666667,0.000374,10]
[399036878,1766081440446,-5888.0,0.00037425,2]
[399036879,1766081440455,-151.0,0.00037445,31]
[399036880,1766081440464,-3264.12,0.00037445,30]
[399036881,1766081440473,-5888.0,0.00037445,2]
[399036882,1766081440482,-1550.33489681,0.00037741,2]
[399036883,1766081440491,-3362.84,0.00037742,30]
[399036884,1766081440500,-500.0,0.00037742,10]
[399036885,1766081440509,-1339.98,0.00037742,30]
[399036886,1766081440519,-500.0,0.00037743,2]
[399036887,1766081440528,-500.0,0.00037743,30]
[399036888,1766081440537,-500.0,0.00037743,30]
[399036889,1766081440546,-500.0,0.00037743,30]
[399036890,1766081440555,-160.0,0.00037744,30]
[399036891,1766081440565,-151.0,0.000378,14]
[399036892,1766081440575,-1965.54425711,0.00037898,2]
[399036893,1766081440584,-3264.12,0.00037956,30]
[399036894,1766081440593,-5888.0,0.00037957,2]
[399036895,1766081440603,-3362.84,0.00037979,30]
[399036896,1766081440612,-3264.12,0.00037979,30]
[399036897,1766081440754,-1339.98,0.00037979,30]
[399036898,1766081440763,-500.0,0.00037986,2]
[399036899,1766081440773,-306.22215725,0.00037986,30]
[399036900,1766081440782,-500.0,0.00037986,30]
[399036901,1766081440792,-500.0,0.00037986,30]
[399036902,1766081440801,-2058.48,0.00037988,30]
[399036903,1766081440811,-2058.48,0.00037988,30]
[399036904,1766081440820,-2229.66,0.00037988,30]
[399036905,1766081440829,-2229.66,0.00037988,30]
[399036906,1766081440839,-500.0,0.00037988,30]
[399036907,1766081440847,-500.0,0.00037988,30]
[399036908,1766081440857,-3264.12,0.00037988,30]
[399036909,1766081440866,-3362.84,0.00037989,30]
[399036910,1766081440875,-3362.84,0.00037989,30]
[399036911,1766081440885,-3362.84,0.00037989,30]
[399036912,1766081440895,-3362.84,0.00037989,30]
[399036913,1766081440904,-3362.84,0.00037989,30]
[399036914,1766081440913,-3264.12,0.00037989,30]
[399036915,1766081440922,-2352.78941932,0.00037989,30]
[399036916,1766081441063,-423.18480538,0.00037989,30]
[399036917,1766081441075,-380.76558027,0.00037989,30]
[399036918,1766081441086,-107.38019503,0.00037989,30]
[399036919,1766081441096,-3264.12,0.00037989,30]
[399036920,1766081441105,-3264.12,0.00037989,30]
[399036921,1766081441115,-3264.12,0.00037989,30]
[399036922,1766081441125,-500.0,0.00037989,2]
[399036923,1766081441134,-275.74077687,0.00037989,2]
[399036945,1766081447274,-224.25922313,0.00037989,2]
[399036946,1766081447284,-500.0,0.00037989,2]
[399036947,1766081447293,-500.0,0.00037989,2]
[399036948,1766081447302,-500.0,0.00037989,2]
[399036949,1766081447312,-1339.98,0.00037989,30]
[399036950,1766081447321,-1339.98,0.00037989,30]
[399036951,1766081447330,-1339.98,0.00037989,30]
[399036952,1766081447339,-1339.98,0.00037989,30]
[399036953,1766081447348,-1339.98,0.00037989,30]
[399036954,1766081447359,-500.0,0.00037989,30]
[399036955,1766081447368,-500.0,0.00037989,30]
[399036956,1766081447377,-500.0,0.00037989,30]
[399036957,1766081447387,-200.87995542,0.00037989,30]
[399036958,1766081447396,-500.0,0.00037989,30]
[399036959,1766081447405,-500.0,0.00037989,30]
[399036960,1766081447414,-500.0,0.00037989,30]
[399036961,1766081447423,-500.0,0.00037989,30]
[399036962,1766081447432,-500.0,0.00037989,30]
[399036963,1766081447442,-100000.0,0.0003799,2]
[399036964,1766081447451,-3362.84,0.00037998,30]
[399036965,1766081447461,-1339.98,0.00037998,30]
[399036966,1766081447470,-2058.48,0.00037999,30]
[399036967,1766081447479,-2229.66,0.00037999,30]
[399036968,1766081447488,-500.0,0.00037999,30]
[399036969,1766081447498,-296.85775983,0.00038,30]
[399036970,1766081447507,-1041.66666667,0.00038,3]
[399036971,1766081447517,-151.0,0.000381,16]
[399036972,1766081447526,-10000.0,0.00038179,2]
[399036973,1766081447536,-3264.12,0.00038181,30]
[399036974,1766081447546,-3264.12,0.00038181,30]
[399036975,1766081447556,-3264.12,0.00038181,30]
[399036976,1766081447565,-3264.12,0.00038181,30]
[399036977,1766081447574,-3264.20794459,0.00038181,30]
[399036978,1766081447584,-500.0,0.00038181,2]
[399036979,1766081447593,-500.0,0.00038181,30]
[399036980,1766081447602,-151.0,0.000382,14]
[399036981,1766081447611,-151.0,0.000382,13]
[399036982,1766081447621,-151.0,0.000382,10]
[399036983,1766081447630,-151.0,0.000382,17]
[399036984,1766081447640,-213.17030438,0.00038255,3]
[399036985,1766081447649,-419.28861508,0.00038255,3]
[399036986,1766081447659,-3362.84,0.00038259,30]
[399036987,1766081447668,-1339.98,0.00038259,30]
[399036988,1766081447678,-3362.84,0.00038263,30]
[399036989,1766081447687,-3362.84,0.00038263,30]
[399036990,1766081447696,-3362.84,0.00038263,30]
[399036991,1766081447706,-3362.84,0.00038263,30]
[399036992,1766081447715,-3362.84,0.00038263,30]
[399036993,1766081447725,-3362.84,0.00038263,30]
[399036994,1766081447734,-3362.93585434,0.00038263,30]
[399036995,1766081447744,-1339.98,0.00038263,30]
[399036996,1766081447753,-1339.98,0.00038263,30]
[399036997,1766081447763,-1339.98,0.00038263,30]
[399036998,1766081447772,-1339.98,0.00038263,30]
[399036999,1766081447781,-1339.98,0.00038263,30]
[399037000,1766081447791,-1339.98,0.00038263,30]
[399037001,1766081447801,-1340.13977498,0.00038263,30]
[399037002,1766081447810,-500.0,0.00038264,2]
[399037003,1766081447820,-500.0,0.00038264,2]
[399037004,1766081447830,-500.0,0.00038264,2]
[399037005,1766081447839,-166.79,0.00038264,2]
[399037006,1766081447849,-500.0,0.00038264,30]
[399037007,1766081447858,-500.0,0.00038264,30]
[399037008,1766081447868,-500.0,0.00038264,30]
[399037009,1766081447878,-500.0,0.00038264,30]
[399037010,1766081447891,-500.0,0.00038264,30]
[399037011,1766081447900,-500.0,0.00038264,30]
[399037012,1766081447912,-500.0,0.00038264,30]
[399037013,1766081447922,-500.0,0.00038264,30]
[399037014,1766081447932,-265.65053515,0.00038264,30]
[399037015,1766081447942,-5888.0,0.00038264,120]
[399037016,1766081447951,-5888.0,0.00038282,2]
[399037017,1766081447961,-2058.48,0.00038364,120]
[399037018,1766081447970,-2058.48,0.00038364,120]
[399037019,1766081447980,-2058.48,0.00038364,120]
[399037020,1766081447990,-2229.66,0.00038364,120]
[399037021,1766081448000,-2229.66,0.00038364,120]
[399037022,1766081448010,-2229.66,0.00038364,120]
[399037023,1766081448019,-500.0,0.00038364,120]
[399037024,1766081448028,-500.0,0.00038364,120]
[399037025,1766081448038,-500.0,0.00038364,120]
[399037027,1766081448047,-2058.48,0.00038365,120]
[399037029,1766081448056,-2058.48,0.00038365,120]
[399037031,1766081448065,-2058.48,0.00038365,120]
[399037033,1766081448074,-2058.48,0.00038365,120]
[399037035,1766081448083,-2058.48,0.00038365,120]
[399037037,1766081448091,-2058.48,0.00038365,120]
[399037039,1766081448100,-2058.48,0.00038365,120]
[399037041,1766081448110,-2058.48,0.00038365,120]
[399037042,1766081448119,-2058.56911568,0.00038365,120]
[399037043,1766081448128,-2229.66,0.00038365,120]
[399037044,1766081448139,-2229.66,0.00038365,120]
[399037045,1766081448148,-2229.66,0.00038365,120]
[399037046,1766081448157,-2229.66,0.00038365,120]
[399037047,1766081448166,-2229.66,0.00038365,120]
[399037048,1766081448175,-2229.66,0.00038365,120]
[399037049,1766081448185,-2229.66,0.00038365,120]
[399037050,1766081448194,-2229.66,0.00038365,120]
[399037051,1766081448204,-2229.80656168,0.00038365,120]
[399037052,1766081448217,-500.0,0.00038365,120]
[399037053,1766081448226,-500.0,0.00038365,120]
[399037054,1766081448235,-500.0,0.00038365,120]
[399037055,1766081448245,-507.59545616,0.00038365,120]
[399037056,1766081448254,-151.0,0.000384,12]
[399037057,1766081448265,-276.29,0.000384,7]
[399037058,1766081448275,-5888.0,0.00038493,2]
[399037059,1766081448284,-5888.0,0.00038518,2]
[399037060,1766081448294,-5888.0,0.00038545,2]
[399037061,1766081448303,-5888.0,0.00038558,2]
[399037062,1766081448313,-5888.0,0.00038643,7]
[399037063,1766081448322,-5888.0,0.00038646,2]
[399037064,1766081448332,-1803.60044427,0.00038688,2]
[399037065,1766081448341,-151.0,0.000387,10]
[399037066,1766081448350,-800.0,0.000388,7]
[399037067,1766081448359,-5888.0,0.00038802,2]
[399037068,1766081448369,-62951.9225094,0.00039,120]
[399037069,1766081448379,-30410.00004088,0.00039,7]
[399037070,1766081448390,-1272.9,0.00039,2]
[399037071,1766081448399,-1041.66666667,0.00039,120]
[399037072,1766081448409,-1041.66666667,0.00039,7]
[399037073,1766081448418,-5888.0,0.0003914,2]
[399037074,1766081448428,-5888.0,0.00039399,7]
[399037075,1766081448437,-5888.0,0.00039443,7]
[399037076,1766081448447,-5888.0,0.00039576,120]
[399037077,1766081448456,-31884.48671,0.000397,120]
[399037078,1766081448465,-1000.0,0.00039775,60]
[399037079,1766081448474,-244.0,0.00039775,60]
[399037080,1766081448484,-199.84,0.000399,120]
[399037081,1766081448493,-500.0,0.00039919,15]
[399037082,1766081448502,-500.0,0.00039919,15]
[399037083,1766081448511,-300.0,0.0004,5]
[399037084,1766081448521,-6800.0,0.0004,120]
[399037085,1766081448531,-266.63,0.0004,14]
[399037086,1766081448540,-5888.0,0.00040098,7]
[399037087,1766081448550,-276.29,0.000401,7]
[399037088,1766081448560,-5888.0,0.00040167,2]
[399037089,1766081448570,-385852.08361503,0.00040196,60]
[399037090,1766081448579,-263638.47775547,0.00040196,30]
[399037091,1766081448588,-437.39948518,0.00040196,120]
[399037092,1766081448598,-1418.11003653,0.00040196,30]
[399037093,1766081448607,-43000.0,0.00040196,120]
[399037094,1766081448617,-18383.82676252,0.00040196,30]
[399037095,1766081448626,-2189.49103072,0.00040196,35]
[399037096,1766081448636,-100000.0,0.00040196,30]
[399037097,1766081448646,-36858.0,0.00040196,30]
[399037098,1766081448656,-155.68805051,0.00040196,120]
[399037099,1766081448666,-296.31470327,0.00040196,120]
[399037100,1766081448675,-155.68805051,0.00040196,120]
[399037101,1766081448685,-296.31470327,0.00040196,120]
[399037102,1766081448694,-155.68805051,0.00040196,120]
[399037103,1766081448703,-296.31470327,0.00040196,120]
[399037104,1766081448713,-155.68805051,0.00040196,120]
[399037105,1766081448722,-155.68805051,0.00040196,120]
[399037106,1766081448731,-155.68805051,0.00040196,120]
[399037107,1766081448741,-155.68805051,0.00040196,120]
[399037108,1766081448751,-155.68805049,0.00040196,120]
[399037109,1766081448761,-160.0,0.00040196,31]
[399037110,1766081448771,-160.0,0.00040196,31]
[399037111,1766081448780,-283.89502441,0.00040196,120]
[399037112,1766081448789,-283.89502441,0.00040196,120]
[399037113,1766081448799,-283.89502441,0.00040196,120]
[399037114,1766081448808,-283.89502441,0.00040196,120]
[399037115,1766081448818,-283.89502441,0.00040196,120]
[399037116,1766081448828,-283.89502441,0.00040196,120]
[399037117,1766081448837,-283.89502441,0.00040196,120]
[399037118,1766081448846,-283.89502441,0.00040196,120]
[399037119,1766081448855,-283.89502441,0.00040196,120]
[399037120,1766081448865,-283.89502441,0.00040196,120]
[399037121,1766081448875,-283.89502441,0.00040196,120]
[399037122,1766081448884,-283.89502441,0.00040196,120]
[399037123,1766081448895,-283.89502441,0.00040196,120]
[399037124,1766081448904,-283.89502441,0.00040196,120]
[399037125,1766081448914,-285.22909608,0.00040196,120]
[399037126,1766081448924,-285.22909608,0.00040196,120]
[399037127,1766081448934,-285.22909608,0.00040196,120]
[399037128,1766081448944,-285.22909608,0.00040196,120]
[399037129,1766081448953,-285.22909608,0.00040196,120]
[399037130,1766081448962,-285.22909608,0.00040196,120]
[399037131,1766081448972,-285.22909608,0.00040196,120]
[399037132,1766081448981,-277.06220924,0.00040196,120]
[399037133,1766081448991,-277.06220924,0.00040196,120]
[399037134,1766081449000,-277.06220924,0.00040196,120]
[399037135,1766081449009,-277.06220924,0.00040196,120]
[399037136,1766081449019,-277.06220924,0.00040196,120]
[399037137,1766081449028,-277.06220924,0.00040196,120]
[399037138,1766081449037,-277.06220924,0.00040196,120]
[399037139,1766081449047,-277.06220924,0.00040196,120]
[399037140,1766081449056,-277.06220924,0.00040196,120]
[399037141,1766081449065,-277.06220924,0.00040196,120]
[399037142,1766081449075,-277.06220924,0.00040196,120]
[399037143,1766081449085,-277.06220924,0.00040196,120]
[399037144,1766081449095,-277.06220924,0.00040196,120]
[399037145,1766081449105,-277.06220924,0.00040196,120]
[399037146,1766081449114,-500.0,0.00040196,120]
[399037147,1766081449124,-1041.66666667,0.000402,120]
[399037148,1766081449133,-600.0,0.00040274,5]
[399037149,1766081449142,-200.0,0.0004042,120]
[399037150,1766081449152,-900.0,0.00040548,5]
[399037151,1766081449163,-5888.0,0.00040551,2]
[399037152,1766081449172,-1200.0,0.00040822,5]
[399037153,1766081449181,-301632.06374231,0.000409,14]
[399037154,1766081449191,-500.0,0.00041096,120]
[399037155,1766081449201,-500.0,0.00041096,10]
[399037156,1766081449212,-16499.0,0.00041196,120]
[399037157,1766081449223,-166.0,0.00041232,120]
[399037158,1766081449233,-1041.66666667,0.000414,120]
[399037159,1766081449243,-500.0,0.00041644,120]
[399037160,1766081449254,-500.0,0.00042192,120]
[399037161,1766081449264,-1272.9,0.000422,2]
[399037162,1766081449273,-503.0,0.00043196,120]
[399037163,1766081449283,-2001.631109,0.00043272,2]
[399037164,1766081449293,-166.0,0.00043294,120]
[399037165,1766081449302,-200.0,0.00043496,120]
[399037166,1766081449311,-1000.0,0.00043752,60]
[399037167,1766081449321,-492.0,0.00043752,60]
[399037168,1766081449330,-200.0,0.00043927,120]
[399037169,1766081449341,-266.63,0.000453,14]
[399037170,1766081449351,-166.0,0.00045459,120]
[399037171,1766081449360,-2000.0,0.00046,60]
[399037172,1766081449369,-2000.0,0.00047,60]
[399037173,1766081449379,-580.76744463,0.00047075,15]
[399037174,1766081449389,-200.0,0.00047348,120]
[399037175,1766081449400,-166.0,0.00047732,120]
[399037176,1766081449409,-6398.64669453,0.0004777,120]
[399037177,1766081449420,-160.0,0.00047914,3]
[399037178,1766081449430,-3700.0,0.00048,30]
[399037179,1766081449439,-1000.0,0.00048127,120]
[399037180,1766081449448,-791.0,0.00048127,120]
[399037181,1766081449458,-51046.94622338,0.0004851,30]
[399037182,1766081449472,-3730.4822034,0.0004851,30]
[399037183,1766081640740,289974.98,0.0002,2]
[399037186,1766081681769,150.0,0.00020052,2]
[399037187,1766081682180,150.0,0.00021007,2]
[399037188,1766081685800,339906.02,0.0002,2]
[399037189,1766081747364,150.0,0.00019641,2]
[399037190,1766081749553,50.0,0.00024701,120]
[399037191,1766081823404,500.0,0.00013699,2]
[399037192,1766081823482,208.07300571,0.00014247,2]
[399037210,1766082158037,167.087779,0.00013699,2]
[399037211,1766082177084,1034.97774231,0.00021501,2]
[399037383,1766082464339,110885.13962395,0.00018,2]
[399037384,1766082464370,50389.8047429,0.00018,2]
[399037449,1766082497373,2130.14110636,0.000176,2]
[399037470,1766082507059,99657.69743978,0.00017,2]
[399037471,1766082507757,-445.4389765,0.00017,2]
[399037477,1766082509588,12785.77842711,0.00015,2]
[399037478,1766082511634,-186.86826813,0.00015,2]
[399037487,1766082513190,-221.52930471,0.00015,2]
[399037488,1766082516856,-1011.41076904,0.00015,2]
[399037489,1766082518796,-301.57010704,0.00015,2]
[399037490,1766082520430,-450.39964772,0.000135,2]
[399037491,1766082525704,-204.7777371,0.000135,2]
[399037492,1766082529007,-236.07555556,0.000135,2]
[399037493,1766082531270,-340.39669878,0.000135,2]
[399037494,1766082534556,-154.9774803,0.000135,2]
[399037495,1766082538002,-200.41035228,0.000135,2]
[399037496,1766082540921,-226.13843898,0.000135,2]
[399037497,1766082543570,-267.50156102,0.000135,2]
[399037498,1766082549817,-280.07643271,0.000135,2]
[399037499,1766082552590,-368.6646071,0.000135,2]
[399037500,1766082556573,-391.44785084,0.000135,2]
[399037501,1766082559136,-419.22748701,0.000135,2]
[399037502,1766082562420,-179.39048828,0.000135,2]
[399037503,1766082566520,-156.2238354,0.000135,2]
[399037505,1766082570077,-328.74872386,0.000135,2]
[399037506,1766082572967,-209.04721518,0.000135,2]
[399037507,1766082572988,-29.35233655,0.00015,2]
[399037508,1766082575910,-204.52558726,0.00015,2]
[399037509,1766082578992,-164.04125101,0.00015,2]
[399037510,1766082580829,-458.2552902,0.00015,2]
[399037511,1766082583232,-273.19444444,0.00015,2]
[399037512,1766082586874,-230.78617093,0.00015,2]
[399037513,1766082590208,-292.18993965,0.00015,2]
[399037514,1766082592141,-347.48922955,0.00015,2]
[399037515,1766082596266,-300.00887776,0.00015,2]
[399037516,1766082598780,-223.75617013,0.00015,2]
[399037517,1766082600727,-410.93456672,0.00015,2]
[399037518,1766082603255,-193.54,0.00015,2]
[399037519,1766082605292,-211.11128396,0.00015,2]
[399037520,1766082608951,-226.6706763,0.00015,2]
[399037521,1766082611753,-403.31571363,0.00015,2]
[399037522,1766082615554,-320.97959443,0.00015,2]
[399037523,1766082617681,-263.56000557,0.00015,2]
[399037524,1766082619100,-3637.86266507,0.00015,2]
[399037525,1766082619149,-2157.36579579,0.00015,2]
[399037526,1766082619227,-287.84965235,0.00015,2]
[399037527,1766082619390,-279.06922172,0.00015,2]
[399037528,1766082619420,-150.0,0.00016,2]
[399037529,1766082619449,-300.0,0.00016999,2]
[399037530,1766082619518,-8541.87155656,0.00017,2]
[399037531,1766082619552,-2478.93213179,0.00017,2]
[399037532,1766082619579,-300.0,0.00017317,120]
[399037533,1766082619607,-300.0,0.00017317,120]
[399037534,1766082619633,-300.0,0.00017317,120]
[399037535,1766082619661,-177.0,0.00018,2]
[399037536,1766082619758,-2888.14573642,0.00018,2]
[399037537,1766082619777,-10000.01,0.00018,2]
[399037538,1766082619804,-10000.01,0.00018,2]
[399037539,1766082622676,-2963.83066023,0.00018,2]
[399037540,1766082622724,-4072.34867954,0.00018,2]
[399037575,1766082631990,-600.0,0.00018359,2]
[399037576,1766082632000,-222.80310986,0.00019549,2]
[399037577,1766082632010,-179.19578742,0.0002,2]
[399037578,1766082632019,-720.0,0.00020195,2]
[399037579,1766082632029,-864.0,0.00022214,10]
[399037580,1766082632038,-5000.0,0.00023513,2]
[399037581,1766082632049,-1000.0,0.00024436,10]
[399037582,1766082632058,-167.087779,0.00024907,2]
[399037583,1766082632067,-220.0,0.00025,2]
[399037584,1766082632076,-614.0,0.00026848,2]